Workbook

Sheet Sommaire

Sheet Stock
B3: Stock réel présent chez xxxx | L3: PAL15001
C5: N° de Palette | D5: Date d'envoi | E5: Durée de stockage prévue | K5: Date de sortie prévue des échantillons | L5: Demande d'essais concernée | M5: Nombre d'échantillons stockés | N5: Contenu
F6: an(s) | H6: jour(s) | J6: mois | K6: =IF(D6="","",DATE(YEAR(D6)+E6,MONTH(D6)+I6,DAY(D6)+G6)) -> 

Sheet Devis
I3: Proposition de stockage / Devis
L5: LABO xx
C6: Stockage d'échantillons
C8: 1- Liste des tests réalisables et coûts des essais
T10: Durée | AA10: Transport | AD10: Nbre de palettes | AG10: Coût total
C12: Stockage d'échantillons en entrepot externe | U12: j | W12: mois | Y12: année(s) | AA12: Prix HT AVEC transport AMONT ET AVAL
C18: Date de la proposition : | H18: =TODAY() -> 2015-03-05 | AC18: Coût global du stockage | AG18: =IF(AA12=D65,Tarif!L26,IF(Devis!AA12=Devis!D66,Tarif!N26,IF(Devis!AA12=Devis!D67,Tarif!P26,IF(Devis!AA12=Devis!D68,Tarif!R26)))) -> 
C21: 2 - Validation de la proposition d'essais
C23: Proposition validée (oui/non) : | Q23: Modifications à apporter si la proposition est invalidée
C25: Date de la validation :
C27: Prénom / nom :
C29: 3 - Liste des produits à stocker | Q29: 4 - Identité / Coordonnées du demandeur
AC30: Test de performance
C31: Type de produit | Q31: Prénom / Nom du demandeur
Q33: Intitulé de la mission
Q35: Rayon / service / site
Q37: (
C38: Liste des échantillons
Q39: 5 - Coordonnées des interlocuteurs du laboratoire
Q46: 6 - Commentaires divers
D65: ="Prix HT SANS transport" -> Prix HT SANS transport
D66: ="Prix HT AVEC transport AMONT ET DESTRUCTION" -> Prix HT AVEC transport AMONT ET DESTRUCTION
D67: ="Prix HT AVEC transport AVAL OU AMONT" -> Prix HT AVEC transport AVAL OU AMONT
D68: ="Prix HT AVEC transport AMONT ET AVAL" -> Prix HT AVEC transport AMONT ET AVAL

Sheet Tarif
C3: Tarif de stockage /xxx / Mise à jour du 16/12/14
C5: 1 - Calcul des coûts de stockage
C8: Nombre de palettes à stocker : | L8: =IF(Devis!AD12="","",Devis!AD12) ->  | P8: =IF(L12<>"",L12,IF(L14<>"",(L14*7+P14),IF(L16<>"",(L16*30+P16*7),IF(L18<>"",(L18*365+P18*30),0)))) -> 0
C10: Durée de stockage :
C12: Entrez le nombre de jours, | L12: =IF(Devis!T12="","",Devis!T12) ->  | N12: jour(s) | T12: =L12 -> 
C14: ou entrez le nombre de semaines, | N14: semaine(s) | O14: et | R14: jour(s) | T14: =L14*7+P14 -> 0
C16: ou le nombre de mois, | L16: =IF(Devis!V12="","",Devis!V12) ->  | N16: mois | O16: et | R16: semaine(s) | T16: =L16*30+7*P16 -> 
C18: ou le nombre d'années. | L18: =IF(Devis!X12="","",Devis!X12) ->  | N18: année(s) | O18: et | R18: mois | T18: =L18*365+P18*30 -> 
L20: ="Prix HT SANS transport "&$L$8&" palette(s)" -> Prix HT SANS transport palette(s) | N20: ="Prix HT AVEC transport AMONT ET DESTRUCTION "&$L$8&" palette(s)" -> Prix HT AVEC transport AMONT ET DESTRUCTION palette(s) | P20: ="Prix HT AVEC transport AVAL OU AMONT "&$L$8&" palette(s)" -> Prix HT AVEC transport AVAL OU AMONT palette(s) | R20: ="Prix HT AVEC transport AMONT ET AVAL "&$L$8&" palette(s)" -> Prix HT AVEC transport AMONT ET AVAL palette(s)
C22: Inf à 4 palettes et sup à 2 ans | L22: =IF(OR($L$8="",$L$8=0,$P$8="",$P$8=0),"",$L$8*($P$8*$L$49+2*$L$50)+2*$L$51) ->  | N22: =IF(OR($L$8="",$L$8=0,$P$8="",$P$8=0),"",$L$8*($P$8*$L$49+2*$L$50)+2*$L$51+1*$L$59) ->  | P22: =IF(OR($L$8="",$L$8=0,$P$8="",$P$8=0),"",$L$8*($P$8*$L$49+2*$L$50)+2*$L$51+$L$59) ->  | R22: =IF(OR($L$8="",$L$8=0,$P$8="",$P$8=0),"",$L$8*($P$8*$L$49+2*$L$50)+2*$L$51+2*$L$59) -> 
C23: Inf à 4 palettes et inf à 2 ans | L23: =IF(OR($L$8="",$L$8=0,$P$8="",$P$8=0),"",$L$8*($P$8*$L$48+2*$L$50)+2*$L$51) ->  | N23: =IF(OR($L$8="",$L$8=0,$P$8="",$P$8=0),"",$L$8*($P$8*$L$48+2*$L$50)+2*$L$51+1*$L$59) ->  | P23: =IF(OR($L$8="",$L$8=0,$P$8="",$P$8=0),"",$L$8*($P$8*$L$48+2*$L$50)+2*$L$51+$L$59) ->  | R23: =IF(OR($L$8="",$L$8=0,$P$8="",$P$8=0),"",$L$8*($P$8*$L$48+2*$L$50)+2*$L$51+2*$L$59) -> 
C24: Sup à 4 palettes et sup à 2 ans | L24: =IF(OR($L$8="",$L$8=0,$P$8="",$P$8=0),"",$L$8*($P$8*$L$49+2*$L$50)+2*$L$51) ->  | N24: =IF(OR($L$8="",$L$8=0,$P$8="",$P$8=0),"",$L$8*($P$8*$L$49+2*$L$50)+2*$L$51+1*$L$60) ->  | P24: =IF(OR($L$8="",$L$8=0,$P$8="",$P$8=0),"",$L$8*($P$8*$L$49+2*$L$50)+2*$L$51+$L$60) ->  | R24: =IF(OR($L$8="",$L$8=0,$P$8="",$P$8=0),"",$L$8*($P$8*$L$49+2*$L$50)+2*$L$51+2*$L$60) -> 
C25: sup à 4 palettes et inf à 2 ans | L25: =IF(OR($L$8="",$L$8=0,$P$8="",$P$8=0),"",$L$8*($P$8*$L$48+2*$L$50)+2*$L$51) ->  | N25: =IF(OR($L$8="",$L$8=0,$P$8="",$P$8=0),"",$L$8*($P$8*$L$48+2*$L$50)+2*$L$51+1*$L$60) ->  | P25: =IF(OR($L$8="",$L$8=0,$P$8="",$P$8=0),"",$L$8*($P$8*$L$48+2*$L$50)+2*$L$51+$L$60) ->  | R25: =IF(OR($L$8="",$L$8=0,$P$8="",$P$8=0),"",$L$8*($P$8*$L$48+2*$L$50)+2*$L$51+2*$L$60) -> 
C26: Coûts de stockage SANS / AVEC transport | L26: =IF(AND($L$8<=4,$P$8>=730),L22,IF(AND($L$8<=4,$P$8<730),L23,IF(AND($L$8>4,$P$8>=730),L24,IF(AND($L$8>4,$P$8<730),L25,"")))) ->  | N26: =IF(AND($L$8<=4,$P$8>=730),N22,IF(AND($L$8<=4,$P$8<730),N23,IF(AND($L$8>4,$P$8>=730),N24,IF(AND($L$8>4,$P$8<730),N25,"")))) ->  | P26: =IF(AND($L$8<=4,$P$8>=730),P22,IF(AND($L$8<=4,$P$8<730),P23,IF(AND($L$8>4,$P$8>=730),P24,IF(AND($L$8>4,$P$8<730),P25,"")))) ->  | R26: =IF(AND($L$8<=4,$P$8>=730),R22,IF(AND($L$8<=4,$P$8<730),R23,IF(AND($L$8>4,$P$8>=730),R24,IF(AND($L$8>4,$P$8<730),R25,"")))) -> 
C28: N.B : transport affrété par xx depuis et/ou vers xxxx
C30: 2 - Exemples de tarifs de stockage pour 1 palette AVEC ou SANS transport | P30: Prix HT SANS transport | R30: Prix HT AVEC transport A/R
C32: Manutention et stockage d'une palette durant : | L32: 1 | N32: semaine(s) | O32: – | P32: =T32*$L$48+2*$L$50+2*$L$51 -> 14.84 € | R32: =P32+2*$L$59 -> 104.84 € | T32: 7.00
L34: 1 | N34: mois | O34: – | P34: =T34*$L$48+2*$L$50+2*$L$51 -> 19.55 € | R34: =P34+2*$L$59 -> 109.55 € | T34: 30.00
L36: 3 | N36: mois | O36: – | P36: =T36*$L$48+2*$L$50+2*$L$51 -> 31.85 € | R36: =P36+2*$L$59 -> 121.85 € | T36: 90.00
L38: 6 | N38: mois | O38: – | P38: =T38*$L$48+2*$L$50+2*$L$51 -> 50.30 € | R38: =P38+2*$L$59 -> 140.30 € | T38: 180.00
L40: 12 | N40: mois | O40: – | P40: =T40*$L$48+2*$L$50+2*$L$51 -> 88.23 € | R40: =P40+2*$L$59 -> 178.23 € | T40: =L40*(365/12) -> 365.00
L42: 24 | N42: mois | O42: – | P42: =T42*$L$49+2*$L$50+2*$L$51 -> 148.45 € | R42: =P42+2*$L$59 -> 238.45 € | T42: =L42*(365/12) -> 730.00
L44: 36 | N44: mois | O44: – | P44: =T44*$L$49+2*$L$50+2*$L$51 -> 215.98 € | R44: =P44+2*$L$59 -> 305.98 € | T44: =L44*(365/12) -> 1095.00
C47: Conditions tarifaires :
C48: - Stockage à la journée ( si 2 ans de stockage maxi) | L48: 0.205 € | N48: / palette | O48: HT
C49: - Stockage à la journée (si 2 ans de stockage mini) | L49: 0.185 € | N49: / palette | O49: HT
C50: - Coût de fourche entrée/sortie | L50: 2.15 € | N50: / palette | O50: HT
C51: - Forfait administratif entrée/sortie | L51: 4.55 € | N51: / palette | O51: HT
C53: Coûts de transport :
C55: Transport par le labo xx (emprunt navette réception xx)
C56: - Gratuit
C58: Affrètement par la réception xx
C59: - Jusqu'à 4 palettes (navette) : | L59: 45 €
C60: - Supérieur à 4 palettes (camion) : | L60: 300 €
C62: Affrètement par xx
C63: - 2 palettes (exemple) : | L63: 65 €
C65: Prestations :
C66: - Réception des marchandises arrivant sur palette. Vérification des quantités et mise en stock.
C67: - Recyclage possible des produits stockés : gratuit pour les produits D3E, rétrocession possible pour la ferraille
C68: mais facturation à prévoir pour les matières dangereuses (devis à demander).
C69: - Forfait administratif de 4.55 € pour l'entrée et idem pour la sortie de palettes (1 forfait par réception ou retour).
C70: - En cas de recyclage, forfait d'un coût de fourche par palette recyclée et d'un forfait administratif global de 4.55 €.
